bitfinex-derivatives/quotes_SOLF0:USTF0_20250530
["timestamp","ask_amount","ask_price","bid_price","bid_amount"]
[1748599824279,6.1519,162.49,162.48,566.6321]
[1748599824681,6.1519,162.49,162.48,33.18]
[1748599824986,6.1517,162.5,162.48,33.18]
[1748599825187,33.18,162.56,162.48,33.18]
[1748599825388,0.04250202,162.51,162.48,33.18]
[1748599825587,6.1519,162.49,162.48,33.18]
[1748599825889,0.04250202,162.51,162.48,33.18]
[1748599826184,6.1518,162.5,162.48,33.18]
[1748599826392,0.04250202,162.51,162.48,33.18]
[1748599826882,6.1516,162.5,162.48,33.18]
[1748599828288,6.19380202,162.51,162.48,33.18]
[1748599829083,6.1515,162.5,162.48,33.18]
[1748599829982,6.1519,162.49,162.48,33.18]
[1748599832490,0.04250202,162.51,162.48,33.18]
[1748599832990,0.04250202,162.51,162.49,2.0504]
[1748599834385,46.15600352,162.59,162.49,2.0504]
[1748599834788,46.15600352,162.59,162.51,6.1511]
[1748599835096,46.15600352,162.59,162.49,2.0504]
[1748599835295,0.03870036,162.56,162.52,0.04360767]
[1748599835701,6.1506,162.53,162.52,0.04360767]
[1748599838302,6.1519,162.49,162.48,33.18]
[1748599838605,6.1519,162.49,162.46,1.9752]
[1748599838902,6.78780352,162.54,162.45,33.18]
[1748599839088,2.147,162.53,162.45,33.18]
[1748599839294,0.04569742,162.51,162.47,0.04140482]
[1748599841198,6.1518,162.5,162.47,0.04140482]
[1748599841389,0.04569742,162.51,162.47,0.04140482]
[1748599841896,6.1516,162.5,162.47,0.04140482]
[1748599842690,6.152,162.49,162.47,0.04140482]
[1748599842895,0.04569742,162.51,162.47,0.04140482]
[1748599843293,6.1523,162.48,162.47,0.04140482]
[1748599845099,6.1521,162.49,162.47,0.04140482]
[1748599845489,0.04569742,162.51,162.47,0.04140482]
[1748599846901,6.1517,162.5,162.47,0.04140482]
[1748599847291,6.152,162.49,162.47,0.04140482]
[1748599850200,6.1517,162.5,162.47,0.04140482]
[1748599850407,0.04569742,162.51,162.47,0.04140482]
[1748599850798,0.04569742,162.51,162.49,6.1519]
[1748599851203,0.04569742,162.51,162.49,39.3119]
[1748599851410,6.19709742,162.51,162.49,33.16]
[1748599851703,37.2971,162.59,162.49,33.16]
[1748599851909,33.16,162.59,162.49,33.16]
[1748599852111,6.1502,162.54,162.51,6.1509]
[1748599852705,6.19035684,162.54,162.51,6.19673254]
[1748599853303,6.19035684,162.54,162.52,6.1507]
[1748599853905,6.19035684,162.54,162.51,6.19683254]
[1748599854105,6.1505,162.53,162.51,0.04583254]
[1748599854515,0.04015684,162.54,162.51,0.04583254]
[1748599854815,6.1508,162.52,162.51,0.04583254]
[1748599856713,0.04015684,162.54,162.51,0.04583254]
[1748599857107,33.16,162.62,162.52,6.78780352]
[1748599857416,6.1672,162.63,162.53,33.16]
[1748599857603,2.1182,162.63,162.53,33.16]
[1748599857807,2.1182,162.63,162.54,2.0084]
[1748599858013,0.04630758,162.6,162.57,0.04457005]
[1748599858413,6.19430758,162.6,162.57,6.19327005]
[1748599859217,6.19430758,162.6,162.58,6.1485]
[1748599859510,6.1482,162.59,162.57,33.18457005]
[1748599859710,0.04630758,162.6,162.57,33.18457005]
[1748599859915,6.1485,162.58,162.57,33.18457005]
[1748599860815,6.1485,162.58,162.57,0.04457005]
[1748599864024,6.1506,162.53,162.51,37.2782]
[1748599864418,6.1506,162.53,162.51,33.14]
[1748599865515,0.03910919,162.54,162.51,33.14]
[1748599866319,2.1211,162.61,162.51,37.2707]
[1748599866719,33.14,162.64,162.51,37.2707]
[1748599866917,33.14,162.64,162.53,6.78780352]
[1748599867115,6.1484,162.59,162.55,6.1496]
[1748599867321,6.1484,162.59,162.56,33.14]
[1748599867322,6.19206973,162.59,162.56,33.14]
[1748599867522,0.04366973,162.59,162.56,33.14]
[1748599867717,0.04366973,162.59,162.56,39.289]
[1748599868123,0.04366973,162.59,162.56,33.14]
[1748599868327,6.19216973,162.59,162.56,33.14]
[1748599868524,0.04366973,162.59,162.56,33.14]
[1748599868727,6.0154,162.68,162.56,39.92780352]
[1748599868918,33.14,162.71,162.59,6.78780352]
[1748599869119,33.14,162.71,162.6,37.3084]
[1748599869325,6.1458,162.66,162.61,6.1474]
[1748599869519,33.14,162.71,162.6,37.3084]
[1748599870027,0.04466916,162.67,162.64,0.0408941]
[1748599870329,6.19006916,162.67,162.64,0.0408941]
[1748599871228,6.1455,162.66,162.64,0.0408941]
[1748599872130,6.18996916,162.67,162.64,0.0408941]
[1748599872325,0.04466916,162.67,162.64,33.1808941]
[1748599872526,0.04466916,162.67,162.65,6.1459]
[1748599873230,0.04466916,162.67,162.64,39.3270941]
[1748599873528,0.04466916,162.67,162.64,33.1808941]
[1748599874932,0.04466916,162.67,162.64,39.3269941]
[1748599875630,6.19016916,162.67,162.64,33.1808941]
[1748599875828,0.04466916,162.67,162.64,33.1808941]
[1748599876025,6.1457,162.66,162.64,33.1808941]
[1748599876222,0.04466916,162.67,162.64,33.1808941]
[1748599876726,6.18976916,162.67,162.64,33.1808941]
[1748599877132,0.04466916,162.67,162.64,33.1808941]
[1748599877331,0.04466916,162.67,162.64,39.3268941]
[1748599877835,6.18986916,162.67,162.64,33.1808941]
[1748599879332,0.04466916,162.67,162.64,39.3270941]
[1748599879927,6.18976916,162.67,162.64,39.3270941]
[1748599880122,6.18976916,162.67,162.64,33.1808941]
[1748599880731,0.04466916,162.67,162.64,33.1808941]
[1748599881832,6.1458,162.66,162.64,33.1808941]
[1748599882037,0.04466916,162.67,162.64,33.1808941]
[1748599883035,6.19006916,162.67,162.64,33.1808941]
[1748599883429,0.04466916,162.67,162.64,33.1808941]
[1748599883627,6.1456,162.66,162.64,33.1808941]
[1748599884028,0.04466916,162.67,162.64,33.1808941]
[1748599884429,6.1459,162.65,162.64,33.1808941]
[1748599886933,6.1478,162.6,162.58,33.1]
[1748599887130,6.1478,162.6,162.57,33.1]
[1748599887539,6.1482,162.59,162.57,33.1]
[1748599888036,6.78780352,162.67,162.57,33.1]
[1748599888037,0.04192309,162.6,162.57,33.1]
[1748599888234,0.04580325,162.6,162.57,33.14216307]
[1748599888435,6.1482,162.59,162.57,33.14216307]
[1748599888938,0.04580325,162.6,162.57,33.14216307]
[1748599889234,6.1483,162.59,162.57,33.14216307]
[1748599890336,6.1485,162.58,162.57,33.14216307]
[1748599891633,6.1483,162.59,162.57,33.14216307]
[1748599891834,0.04580325,162.6,162.57,39.29096307]
[1748599892240,6.19370325,162.6,162.57,33.14216307]
[1748599892438,0.04580325,162.6,162.57,33.14216307]
[1748599893136,6.19370325,162.6,162.57,33.14216307]
[1748599893838,6.1482,162.59,162.57,33.14216307]
[1748599894140,0.04580325,162.6,162.57,33.14216307]
[1748599894540,6.19380325,162.6,162.57,33.14216307]
[1748599895741,0.04580325,162.6,162.57,33.14216307]
[1748599895941,6.1481,162.59,162.57,33.14216307]
[1748599896448,6.19370325,162.6,162.57,33.14216307]
[1748599896939,0.04580325,162.6,162.57,33.14216307]
[1748599897135,6.1483,162.59,162.57,33.14216307]
[1748599897540,0.04580325,162.6,162.57,33.14216307]
[1748599897939,6.1485,162.58,162.57,33.14216307]
[1748599898441,0.04580325,162.6,162.57,33.14216307]
[1748599900135,6.19360325,162.6,162.57,33.14216307]
[1748599900537,6.1482,162.59,162.57,33.14216307]
[1748599901542,0.04580325,162.6,162.57,33.14216307]
[1748599903445,6.1485,162.58,162.57,33.14216307]
[1748599904148,6.1483,162.59,162.57,33.14216307]
[1748599904347,0.04580325,162.6,162.57,33.14216307]
[1748599905940,6.1481,162.59,162.57,33.14216307]
[1748599906247,0.04580325,162.6,162.57,33.14216307]
[1748599906747,6.1485,162.58,162.57,33.14216307]
[1748599907940,6.1485,162.58,162.57,0.04216307]
[1748599913544,0.04580325,162.6,162.57,0.04216307]
[1748599915550,0.04580325,162.6,162.58,33.06]
[1748599916252,6.19350325,162.6,162.58,33.06]
[1748599916645,0.04580325,162.6,162.58,33.06]
[1748599917048,6.148,162.59,162.58,33.06]
[1748599917351,0.04580325,162.6,162.57,0.04216307]
[1748599917651,6.1484,162.58,162.57,0.04216307]
[1748599920656,6.1484,162.58,162.57,6.307e-05]
[1748599923052,0.04580325,162.6,162.57,6.307e-05]
[1748599924051,6.19370325,162.6,162.57,6.307e-05]
[1748599925759,6.148,162.59,162.57,6.307e-05]
[1748599925962,0.04580325,162.6,162.57,6.307e-05]
[1748599926557,6.1482,162.59,162.57,6.307e-05]
[1748599926956,0.04580325,162.6,162.57,6.307e-05]
[1748599927355,6.148,162.59,162.57,6.307e-05]
[1748599929361,0.04580325,162.6,162.57,6.307e-05]
[1748599932062,0.04580325,162.6,162.57,6.14866307]
[1748599933369,0.04580325,162.6,162.58,6.1484]
[1748599933566,0.04580325,162.6,162.57,6.307e-05]
[1748599933965,0.04580325,162.6,162.59,6.148]
[1748599934764,19.07420352,162.72,162.57,6.307e-05]
[1748599934968,6.1443,162.69,162.59,6.78780352]
[1748599935269,6.1443,162.69,162.64,6.1458]
[1748599935466,6.1443,162.69,162.64,39.2058]
[1748599935767,6.18692689,162.68,162.65,0.04426345]
[1748599936862,0.04232689,162.68,162.65,0.04426345]
[1748599938263,6.1453,162.66,162.65,0.04426345]
[1748599940471,6.1467,162.63,162.61,33.06]
[1748599940868,39.78780352,162.68,162.61,33.06]
[1748599941069,6.1461,162.64,162.61,33.06]
[1748599941472,6.19127525,162.64,162.61,33.10017142]
[1748599941972,0.04517525,162.64,162.61,33.10017142]
[1748599943582,0.04517525,162.64,162.61,39.24717142]
[1748599943974,0.04517525,162.64,162.61,33.10017142]
[1748599945681,6.19127525,162.64,162.61,33.10017142]
[1748599945977,0.04517525,162.64,162.61,33.10017142]
[1748599946381,6.1467,162.62,162.61,33.10017142]
[1748599948489,6.1466,162.63,162.61,33.10017142]
[1748599950092,6.1468,162.62,162.61,33.10017142]
[1748599950792,6.1466,162.63,162.61,33.10017142]
[1748599952294,0.04517525,162.64,162.61,33.10017142]
[1748599953096,6.19127525,162.64,162.61,33.10017142]
[1748599953494,0.04517525,162.64,162.61,33.10017142]
[1748599954993,6.19147525,162.64,162.61,33.10017142]
[1748599955491,0.04517525,162.64,162.61,33.10017142]
[1748599955896,6.1464,162.63,162.61,33.10017142]
[1748599956492,6.19137525,162.64,162.61,33.10017142]
[1748599959699,6.1464,162.63,162.61,33.10017142]
[1748599960101,0.04517525,162.64,162.61,33.10017142]
[1748599960296,6.1468,162.62,162.61,33.10017142]
[1748599962805,0.04517525,162.64,162.61,33.10017142]
[1748599963496,122.66,162.77,162.61,33.10017142]
[1748599963497,33.0,162.77,162.63,6.78780352]
[1748599963698,2.073,162.76,162.64,2.0541]
[1748599963903,2.073,162.76,162.65,33.0]
[1748599964204,10.92020352,162.75,162.65,33.0]
[1748599964399,6.1452,162.67,162.65,33.0]
[1748599964899,6.1453,162.66,162.65,33.0]
[1748599968305,6.1456,162.65,162.64,0.04397246]
[1748599979511,6.1475,162.6,162.59,32.92]
[1748599980014,6.148,162.59,162.56,565.9044]
[1748599980407,6.78780352,162.68,162.56,565.9044]
[1748599980610,6.1471,162.61,162.6,0.04634668]
[1748599983808,6.1471,162.61,162.6,4.668e-05]
[1748599984010,6.1498,162.54,162.53,32.94]
[1748599984404,32.94,162.61,162.5,32.94]
[1748599985014,32.94,162.61,162.54,0.04128846]
[1748599985015,0.0407445,162.57,162.54,0.04128846]
[1748599985407,0.0407445,162.57,162.54,32.98128846]
[1748599987313,0.0407445,162.57,162.54,0.04128846]
[1748599987718,6.1494,162.55,162.54,0.04128846]
[1748600000016,6.1494,162.55,162.54,8.846e-05]
[1748600001624,6.16,162.55,162.43,8.1917]
[1748600001828,38.9854,162.56,162.45,32.88]
[1748600002430,51.2838,162.56,162.45,32.88]
[1748600002726,0.04552196,162.52,162.45,32.88]
[1748600002919,6.1524,162.48,162.45,32.88]
[1748600003125,6.19847047,162.48,162.45,32.88]
[1748600003630,6.1525,162.47,162.45,32.88]
[1748600004023,0.04607047,162.48,162.45,32.88]
[1748600004226,6.19837047,162.48,162.45,32.88]
[1748600005130,6.1525,162.47,162.45,32.88]
[1748600005531,0.04607047,162.48,162.45,32.88]
[1748600005726,6.1524,162.47,162.45,32.88]
[1748600006634,6.1528,162.46,162.45,32.88]
[1748600007033,6.1526,162.47,162.45,32.88]
[1748600008330,6.1528,162.46,162.45,32.88]
[1748600010927,0.04607047,162.48,162.42,32.88]
[1748600010928,6.1543,162.43,162.42,32.88]
[1748600017536,6.1551,162.4,162.39,564.14]
[1748600018244,6.1548,162.41,162.39,564.14]
[1748600018442,0.04371694,162.44,162.39,564.14]
[1748600020049,6.1549,162.41,162.39,564.14]
[1748600021851,6.1551,162.4,162.39,564.14]
[1748600022152,6.1551,162.4,162.39,32.9]
[1748600022351,6.1558,162.38,162.37,1.9667]
[1748600022539,0.04646544,162.39,162.36,34.9644]
[1748600022743,6.1562,162.37,162.36,34.9644]
[1748600023451,6.1562,162.37,162.36,32.9]
[1748600023951,6.1562,162.37,162.33,39.0576]
[1748600024343,0.04646544,162.39,162.33,39.0576]
[1748600024544,0.04646544,162.39,162.33,32.9]
[1748600024953,6.1569,162.36,162.33,32.9]
[1748600025149,6.1569,162.36,162.33,39.0576]
[1748600025747,0.04646544,162.39,162.33,32.9]
[1748600026155,0.04646544,162.39,162.32,2.1443]
[1748600026954,6.1577,162.34,162.32,2.1443]
[1748600027150,0.04576893,162.35,162.32,2.1443]
[1748600027347,0.04576893,162.35,162.3,35.0006]
[1748600027650,0.04576893,162.35,162.3,32.9]
[1748600028252,6.1585,162.31,162.3,32.9]
[1748600028952,6.1592,162.3,162.27,34.9336]
[1748600029260,0.04347671,162.3,162.27,34.9336]
[1748600029554,6.1595,162.29,162.27,34.9336]
[1748600029854,0.04347671,162.3,162.22,32.86]
[1748600030154,0.042212,162.28,162.18,2.0045]
[1748600030350,0.04605492,162.25,162.18,2.0045]
[1748600031748,2.0008,162.33,162.21,6.78780352]
[1748600032052,6.1599,162.28,162.24,6.78780352]
[1748600032255,41.67540352,162.35,162.25,32.86]
[1748600032653,6.1613,162.24,162.22,34.8558]
[1748600032860,0.03976977,162.25,162.22,34.8558]
[1748600033059,0.04100036,162.25,162.22,34.89962076]
[1748600033548,6.1614,162.24,162.22,34.89962076]
[1748600034260,0.04100036,162.25,162.22,34.89962076]
[1748600035147,6.20180036,162.25,162.22,34.89962076]
[1748600036359,0.04100036,162.25,162.22,34.89962076]
[1748600036555,41.67540352,162.35,162.22,41.68742428]
[1748600036861,41.67540352,162.35,162.22,41.64360352]
[1748600037153,34.8876,162.35,162.23,2.1125]
[1748600037759,0.04413805,162.31,162.27,0.0398999]
[1748600037947,6.1596,162.28,162.27,0.0398999]
[1748600043357,6.1593,162.29,162.27,0.0398999]
[1748600043659,0.04413805,162.31,162.27,0.0398999]
[1748600044053,6.159,162.3,162.27,0.0398999]
[1748600044258,0.04413805,162.31,162.27,0.0398999]
[1748600044657,41.66110352,162.4,162.27,10.86110342]
[1748600044963,6.1573,162.35,162.31,6.1584]
[1748600045259,41.66110352,162.4,162.32,32.88]
[1748600045561,0.03984068,162.38,162.34,0.04628529]
[1748600046863,6.157,162.35,162.34,0.04628529]
[1748600047060,0.03984068,162.38,162.34,0.04628529]
[1748600047666,6.157,162.35,162.34,0.04628529]
[1748600068370,6.157,162.35,162.34,8.529e-05]
[1748600069671,6.1589,162.3,162.29,32.82]
[1748600069874,32.82,162.36,162.29,32.82]
[1748600070382,6.1589,162.3,162.29,32.82]
[1748600070981,6.1593,162.29,162.28,0.04517974]
[1748600077484,6.1593,162.29,162.28,7.974e-05]
[1748600077779,6.1593,162.29,162.16,122.52]
[1748600077983,32.82,162.28,162.19,6.78780352]
[1748600078480,6.1612,162.24,162.21,6.1621]
[1748600078879,6.20004188,162.24,162.21,6.20925927]
[1748600079077,0.03884188,162.24,162.22,6.1618]
[1748600079474,2.0757,162.33,162.22,6.78780352]
[1748600079675,238.0,162.32,162.22,39.60780352]
[1748600079872,238.0,162.32,162.25,6.78780352]
[1748600080278,6.1595,162.29,162.25,6.78780352]
[1748600080573,0.04309425,162.29,162.25,6.83469248]
[1748600080782,6.1597,162.28,162.25,12.99529248]
[1748600081184,6.1597,162.28,162.25,6.20748896]
[1748600081683,0.04309425,162.29,162.25,6.20748896]
[1748600082084,6.1599,162.28,162.25,6.20748896]
[1748600082580,6.1601,162.27,162.25,6.20748896]
[1748600082780,0.04309425,162.29,162.25,0.04688896]
[1748600083173,32.86309425,162.29,162.25,0.04688896]
[1748600084785,6.1597,162.28,162.25,6.20768896]
[1748600086484,6.1602,162.27,162.25,6.20768896]
[1748600087082,6.1602,162.27,162.25,0.04688896]
[1748600087288,32.86309425,162.29,162.25,0.04688896]
[1748600088288,6.1602,162.27,162.25,6.20758896]
[1748600088689,6.1598,162.28,162.26,6.1604]
[1748600088889,0.04309425,162.29,162.25,0.04688896]
[1748600089390,0.04309425,162.29,162.27,6.1597]
[1748600089788,6.20269425,162.29,162.26,6.1602]
[1748600090087,0.04309425,162.29,162.25,0.04688896]
[1748600090987,6.16,162.27,162.25,6.20758896]
[1748600091185,0.04309425,162.29,162.25,0.04688896]
[1748600091686,6.1602,162.27,162.25,0.04688896]
[1748600092087,0.04309425,162.29,162.25,0.04688896]
[1748600092388,6.1603,162.27,162.25,0.04688896]
[1748600092589,0.04309425,162.29,162.25,0.04688896]
[1748600092980,6.1604,162.26,162.25,0.04688896]
[1748600094388,6.1602,162.27,162.25,0.04688896]
[1748600095490,6.1602,162.27,162.25,6.20758896]
[1748600096093,6.1604,162.26,162.25,0.04688896]
[1748600096288,0.04309425,162.29,162.25,0.04688896]
[1748600096790,6.1604,162.27,162.25,0.04688896]
[1748600096992,0.04309425,162.29,162.25,0.04688896]
[1748600098888,6.1603,162.27,162.25,0.04688896]
[1748600100395,6.1604,162.26,162.25,0.04688896]
[1748600100894,6.1603,162.27,162.25,6.20768896]
[1748600101195,0.04309425,162.29,162.25,0.04688896]
[1748600101590,6.1604,162.27,162.25,0.04688896]
[1748600102389,6.1604,162.26,162.25,0.04688896]
[1748600103797,6.1602,162.27,162.25,0.04688896]
[1748600103998,0.04309425,162.29,162.25,0.04688896]
[1748600104795,6.1604,162.26,162.25,0.04688896]
[1748600106390,6.1604,162.26,162.19,32.78]
[1748600106391,32.78,162.28,162.17,2.1358]
[1748600106587,240.0278,162.27,162.18,122.46]
[1748600107196,240.0278,162.27,162.17,9.37028119]
[1748600107397,0.04168208,162.24,162.2,0.04059104]
[1748600107602,6.1623,162.21,162.2,0.04059104]
[1748600112297,32.82168208,162.24,162.13,32.78]
[1748600112492,2.0954,162.23,162.13,155.24]
[1748600112694,6.1646,162.15,162.13,32.78]
[1748600112893,32.78,162.2,162.12,9.33238119]
[1748600113089,32.78,162.2,162.1,32.78]
[1748600113297,6.1653,162.14,162.11,6.1659]
[1748600113600,0.04504917,162.17,162.09,122.46]
[1748600113799,0.04219768,162.15,162.09,129.69448119]
[1748600113997,238.0,162.22,162.12,7.23448119]
[1748600114203,32.78,162.23,162.15,7.23448119]
[1748600114500,32.78,162.23,162.18,7.23448119]
[1748600115200,0.04663235,162.22,162.19,0.03950381]
[1748600115895,6.1626,162.21,162.19,0.03950381]
[1748600117203,0.04663235,162.22,162.19,0.03950381]
[1748600117798,0.04663235,162.22,162.2,6.1624]
[1748600118299,0.04663235,162.22,162.19,62.03950381]
[1748600118793,0.04663235,162.22,162.2,6.1624]
[1748600119090,0.04663235,162.22,162.19,0.03950381]
[1748600119091,6.20863235,162.22,162.19,0.03950381]
[1748600120106,0.04663235,162.22,162.19,0.03950381]
[1748600120605,0.04663235,162.22,162.21,6.1623]
[1748600121403,0.04663235,162.22,162.2,6.1625]
[1748600121601,0.04663235,162.22,162.19,0.03950381]
[1748600122002,6.20863235,162.22,162.19,6.20230381]
[1748600123001,0.04663235,162.22,162.19,0.03950381]
[1748600123409,0.04663235,162.22,162.19,7.273985]
[1748600123603,0.04663235,162.22,162.21,6.1623]
[1748600123802,9.36761819,162.25,162.2,32.74]
[1748600124005,9.36761819,162.25,162.23,6.1615]
[1748600124209,9.36761819,162.25,162.22,7.23448119]
[1748600124603,9.36761819,162.25,162.24,6.1612]
[1748600124809,9.36761819,162.25,162.23,0.04616896]
[1748600125302,9.36761819,162.25,162.23,6.20746896]
[1748600125810,15.52841819,162.25,162.23,6.20746896]
[1748600126006,0.04677588,162.26,162.23,6.20746896]
[1748600126216,6.1608,162.25,162.23,0.04616896]
[1748600126612,0.04677588,162.26,162.23,0.04616896]
[1748600129012,6.1612,162.24,162.23,0.04616896]
[1748600133220,6.20737588,162.26,162.23,6.20766896]
[1748600133417,238.0,162.3,162.24,129.65448119]
[1748600133627,32.74,162.35,162.27,7.23448119]
[1748600133919,32.74,162.35,162.27,13.39448119]
[1748600134119,32.74,162.35,162.27,7.23448119]
[1748600134417,6.1585,162.32,162.28,6.1594]
[1748600134621,6.1585,162.32,162.29,0.04447074]
[1748600134817,0.04674382,162.33,162.29,0.04447074]
[1748600135210,6.1582,162.32,162.29,0.04447074]
[1748600135418,0.04674382,162.33,162.29,0.04447074]
[1748600135614,6.1589,162.3,162.29,0.04447074]
[1748600136122,6.1606,162.26,162.24,32.74]
[1748600136910,6.1608,162.25,162.24,32.74]
[1748600137117,6.1608,162.25,162.23,129.67339659]
[1748600137317,0.04353771,162.26,162.23,129.67339659]
[1748600137615,0.04353771,162.26,162.23,7.27339659]
[1748600138217,6.1612,162.24,162.23,0.0389154]
[1748600146629,6.1609,162.25,162.23,0.0389154]
[1748600147222,0.04353771,162.26,162.23,0.0389154]
[1748600147719,6.1608,162.25,162.23,0.0389154]
[1748600147923,0.04353771,162.26,162.23,0.0389154]
[1748600148523,6.20423771,162.26,162.23,0.0389154]
[1748600149124,6.1609,162.25,162.23,0.0389154]
[1748600149928,6.20413771,162.26,162.23,0.0389154]
[1748600150525,0.04353771,162.26,162.23,0.0389154]
[1748600151224,0.04353771,162.26,162.24,6.1609]
[1748600152123,0.04353771,162.26,162.25,6.1608]
[1748600153129,6.1595,162.29,162.26,6.1602]
[1748600153732,270.68,162.33,162.24,7.23448119]
[1748600154027,13.18164528,162.34,162.27,7.23448119]
[1748600154230,0.04659431,162.32,162.29,6.20455168]
[1748600154427,0.04659431,162.32,162.29,0.04545168]
[1748600155029,6.1585,162.31,162.29,0.04545168]
[1748600155333,0.04659431,162.32,162.29,0.04545168]
[1748600155835,0.04659431,162.32,162.3,7.23448119]
[1748600156237,0.04659431,162.32,162.31,6.1585]
[1748600156926,0.04659431,162.32,162.31,68.1585]
[1748600157337,0.04659431,162.32,162.31,62.0]
[1748600157536,0.04659431,162.32,162.3,7.23448119]
[1748600158540,0.04659431,162.32,162.31,6.1585]
[1748600159743,238.0,162.36,162.3,7.23448119]
[1748600159934,32.68,162.39,162.3,7.23448119]
[1748600160535,32.68,162.39,162.31,62.0]
[1748600160732,0.0430503,162.37,162.33,0.04230949]
[1748600161135,6.1574,162.34,162.33,0.04230949]
[1748600161840,32.68,162.35,162.27,55.30129272]
[1748600162435,6.1589,162.31,162.27,55.30129272]
[1748600162641,32.68,162.35,162.27,9.22701153]
[1748600162842,6.1589,162.3,162.29,0.04394721]
[1748600163037,0.0405505,162.33,162.29,0.04394721]
[1748600163536,6.1985505,162.33,162.29,0.04394721]
[1748600163736,0.0405505,162.33,162.29,6.20304721]
[1748600164042,0.0405505,162.33,162.29,0.04394721]
[1748600164738,6.1983505,162.33,162.29,0.04394721]
[1748600165136,6.1983505,162.33,162.3,6.1587]
[1748600165642,0.0405505,162.33,162.3,7.23448119]
[1748600165840,53.01942767,162.4,162.31,122.3]
[1748600166039,53.01942767,162.4,162.37,13.39038119]
[1748600166939,53.0609945,162.4,162.37,7.28107916]
[1748600167248,53.0609945,162.4,162.37,0.04659797]
[1748600167637,55.1257945,162.4,162.37,0.04659797]
[1748600168040,6.1559,162.38,162.37,0.04659797]
[1748600168244,238.0,162.37,162.29,32.68]
[1748600168543,270.68,162.37,162.29,32.68]
[1748600169238,6.1575,162.34,162.31,0.04388501]
[1748600169444,0.04428597,162.35,162.31,0.04388501]
[1748600169637,0.04428597,162.35,162.32,6.1579]
[1748600171341,0.04428597,162.35,162.33,6.1577]
[1748600172248,0.04428597,162.35,162.34,6.1574]
[1748600173043,0.04428597,162.35,162.31,7.2783662]
[1748600173445,0.04428597,162.35,162.34,6.1574]
[1748600173844,0.04428597,162.35,162.31,7.2783662]
[1748600174040,6.1575,162.34,162.31,0.04388501]
[1748600174241,0.04428597,162.35,162.31,0.04388501]
[1748600174449,6.20148597,162.35,162.31,6.20208501]
[1748600174848,6.20148597,162.35,162.31,0.04388501]
[1748600175049,0.04428597,162.35,162.31,0.04388501]
[1748600175256,0.04428597,162.35,162.31,7.2783662]
[1748600176245,0.04428597,162.35,162.32,62.0]
[1748600176454,0.04428597,162.35,162.33,6.1578]
[1748600176753,32.68,162.36,162.31,0.04388501]
[1748600176952,6.1575,162.34,162.31,0.04388501]
[1748600177554,6.20054887,162.34,162.31,0.04388501]
[1748600178444,0.04304887,162.34,162.31,6.20228501]
[1748600179956,0.04304887,162.34,162.33,6.1578]
[1748600182360,291.01942767,162.4,162.33,32.62]
[1748600182549,53.01942767,162.4,162.35,7.23448119]
[1748600182755,53.01942767,162.4,162.36,122.24]
[1748600182954,53.01942767,162.4,162.37,6.156]
[1748600183159,53.06328851,162.4,162.37,6.19677407]
[1748600183458,53.06328851,162.4,162.37,0.04077407]
[1748600183658,53.06328851,162.4,162.38,6.1556]
[1748600184161,53.06328851,162.4,162.39,6.1555]
[1748600184760,53.06328851,162.4,162.37,0.04077407]
[1748600186062,53.06328851,162.4,162.38,6.1556]
[1748600187363,53.06328851,162.4,162.39,6.1555]
[1748600188463,0.04386084,162.4,162.39,6.1555]
[1748600189562,238.0,162.43,162.4,6.155]
[1748600190460,238.04649753,162.43,162.41,6.1547]
[1748600190767,0.04649753,162.43,162.42,122.18]
[1748600190966,0.04649753,162.43,162.42,128.3343]
[1748600191365,81.82305509,162.44,162.42,122.18]
[1748600191665,81.82305509,162.44,162.43,6.154]
[1748600192260,81.82305509,162.44,162.42,128.3342]
[1748600192767,81.82305509,162.44,162.41,38.7747]
[1748600192965,81.82305509,162.44,162.42,122.16]
[1748600193562,81.82305509,162.44,162.41,122.16]
[1748600194961,81.82305509,162.44,162.42,6.1541]
[1748600195468,81.82305509,162.44,162.43,6.154]
[1748600197766,81.82305509,162.44,162.43,68.154]
[1748600198567,76.82305509,162.44,162.43,68.154]
[1748600199677,76.82305509,162.44,162.43,6.154]
[1748600200772,76.82305509,162.44,162.42,38.7742]
[1748600200975,76.82305509,162.44,162.42,122.12]